[Event "Memorial Ukrainian Chess Warriors 2024"]
[Site "Lviv"]
[Date "2024.03.15"]
[Round "6.1"]
[White "Kislinsky, Alexey"]
[Black "Mosesov, Danyil"]
[Result "1/2-1/2"]
[ECO "B02"]
[WhiteElo "2361"]
[BlackElo "2453"]
[Annotator "ChessBase"]
[PlyCount "86"]
[EventDate "2024.03.06"]
[EventType "swiss"]
[EventCountry "UKR"]
[SourceTitle "playchess.com"]
[Source "ChessBase"]
[SourceQuality "1"]
[TimeControl "600+5"]

1. e4 {[%emt 0:00:03]} Nf6 {[%emt 0:00:01]} 2. e5 {[%emt 0:00:07]} Nd5 {[%emt 0:00:00]} 3. c4 {[%emt 0:00:13]} Nb6 {[%emt 0:00:01]} 4. c5 {[%emt 0:00:10]} Nd5 {[%emt 0:00:01]} 5. Nc3 {[%emt 0:00:05]} e6 {[%emt 0:00:13]} 6. Bc4 {[%emt 0:00:04]} Nxc3 {[%emt 0:02:28]} 7. dxc3 {[%emt 0:00:03]} b6 {[%emt 0:00:21]} 8. cxb6 {[%emt 0:00:25]} axb6 {[%emt 0:00:01]} 9. Qg4 {[%emt 0:00:36]} Ba6 {[%emt 0:00:53]} 10. Bg5 {[%emt 0:00:55]} Qc8 {[%emt 0:00:03]} 11. Nf3 {[%emt 0:00:29]} d5 {[%emt 0:01:13]} 12. exd6 {[%emt 0:00:26]} cxd6 {[%emt 0:00:03]} 13. Bxa6 {[%emt 0:00:14]} Qxa6 {[%emt 0:00:03]} 14. c4 {[%emt 0:00:19]} h6 {[%emt 0:00:59]} 15. Bd2 {[%emt 0:00:15]} Nd7 {[%emt 0:00:20]} 16. Bc3 {[%emt 0:00:24]} Rc8 {[%emt 0:00:14]} 17. b3 {[%emt 0:00:19]} b5 {[%emt 0:00:25]} 18. O-O {[%emt 0:00:09]} bxc4 {[%emt 0:00:01]} 19. Rfe1 {[%emt 0:00:12]} Nf6 {[%emt 0:03:24]} 20. Bxf6 {[%emt 0:00:40]} gxf6 {[%emt 0:00:00]} 21. Nd4 {[%emt 0:00:38]} Be7 {[%emt 0:00:27]} 22. Qg7 {[%emt 0:01:46]} Rf8 {[%emt 0:00:01]} 23. Qxh6 {[%emt 0:00:01]} Kd7 {[%emt 0:00:23]} 24. bxc4 {[%emt 0:00:13]} Qxc4 {[%emt 0:00:06]} 25. Rad1 {[%emt 0:00:05]} Rg8 {[%emt 0:00:15]} 26. Qe3 {[%emt 0:00:37]} Rg4 {[%emt 0:00:04]} 27. h3 {[%emt 0:00:23]} Rg5 {[%emt 0:00:01]} 28. Rc1 {[%emt 0:00:34]} Qd5 {[%emt 0:00:02]} 29. Nf3 {[%emt 0:00:01]} Rxc1 {[%emt 0:00:14]} 30. Rxc1 {[%emt 0:00:04]} Rg8 {[%emt 0:00:07]} 31. Qa7+ {[%emt 0:00:03]} Ke8 {[%emt 0:00:03]} 32. Rc8+ {[%emt 0:00:06]} Bd8 {[%emt 0:00:01]} 33. Rxd8+ {[%emt 0:00:08]} Kxd8 {[%emt 0:00:01]} 34. Qb8+ {[%emt 0:00:01]} Ke7 {[%emt 0:00:00]} 35. Qxg8 {[%emt 0:00:02]} Qxa2 {[%emt 0:00:02]} 36. h4 {[%emt 0:00:09]} d5 {[%emt 0:00:03]} 37. h5 {[%emt 0:00:15]} Qb1+ {[%emt 0:00:02]} 38. Kh2 {[%emt 0:00:02]} Qf5 {[%emt 0:00:02]} 39. Qh8 {[%emt 0:00:41]} d4 {[%emt 0:00:01]} 40. Qh6 {[%emt 0:00:11]} e5 {[%emt 0:00:12]} 41. Kg1 {[%emt 0:00:46]} Qb1+ {[%emt 0:00:02]} 42. Kh2 {[%emt 0:00:00]} Qf5 {[%emt 0:00:01]} 43. Kg1 {[%emt 0:00:01]} Qb1+ {[%emt 0:00:01]} 1/2-1/2

[Event "Memorial Ukrainian Chess Warriors 2024"]
[Site "Lviv"]
[Date "2024.03.15"]
[Round "6.2"]
[White "Dehtiarov, Roman"]
[Black "Dubnevych, Maksym"]
[Result "0-1"]
[ECO "C70"]
[WhiteElo "2319"]
[BlackElo "2293"]
[Annotator "TA"]
[PlyCount "130"]
[EventDate "2024.03.06"]
[EventType "swiss"]
[EventCountry "UKR"]
[SourceTitle "playchess.com"]
[Source "ChessBase"]
[SourceQuality "1"]
[TimeControl "600+5"]

{[%evp 9,130,39,55,25,10,21,24,0,23,0,0,0,2,0,4,-86,-82,-80,-80,-125,-83,-83,-66,-63,-66,-68,-61,-346,-330,-301,-81,-80,-66,-75,-81,-84,-71,-147,-145,-251,-255,-300,-287,-263,-211,-258,-268,-275,-288,-252,-183,-222,-170,-346,-200,-350,-350,-367,-257,-273,-135,-802,-781,-921,-893,-903,-889,-1264,-525,-29982,-29950,-4810,892,-29991,933,903,903,829,229,0,0,0,0,0,0,0,8,0,0,-923,-848,-1207,-1173,-1329,-1247,-1527,-966,-1449,-1081,-1873,-1687,-29956,-29968,-29964,-29961,-29966,-29970,-29975,-29976,-29969,-29972,-29971,-29972,-29973,-29974,-29977,-29978,-29978,-29979,-29979,-29980,-29980,-29981]} 1. e4 e5 2. Nf3 Nc6 3. Bb5 a6 4. Ba4 Nge7 5. c3 Ng6 6. O-O (6. d4 $5) 6... d5 7. exd5 Qxd5 8. Re1 {[%cal Of3e5] White has an edge.} Bg4 9. Bb3 (9. Nxe5 {is interesting.} Bxd1 10. Nxc6+ Qe6 11. Rxe6+ fxe6 12. Bxd1 bxc6 13. d4) 9... Qd7 10. h3 $1 Be6 11. Bxe6 Qxe6 12. Ng5 (12. d4 $11 O-O-O 13. Nbd2) 12... Qd7 $17 13. d4 h6 14. d5 hxg5 15. dxc6 Qxc6 (15... Qxd1 16. Rxd1 Be7 17. cxb7 $18) 16. Bxg5 f6 17. Be3 Nh4 $40 {[%mdl 128] White needs to defend precisely.} 18. Qg4 {[%mdl 8192]} ({White has to play} 18. f3 $1 $15) 18... f5 $19 19. Qg3 {[%cal Oe3g5]} Bd6 $2 (19... O-O-O $19 {...f4 would now be deadly.} 20. Nd2 f4 21. Qg4+ Kb8) 20. Bg5 $17 e4 21. Qe3 Ng6 {Black is more active.} 22. Nd2 {[%cal Rd2e4] [#]} O-O $1 23. h4 (23. Qd4 $142) 23... Rae8 24. h5 (24. Qd4 $17) 24... Ne5 $19 25. h6 Ng4 26. Qh3 gxh6 27. Bh4 Bf4 28. Nf1 Qg6 29. Rad1 Rf7 30. Re2 Ne5 31. Kh1 $2 (31. Bg3 Qg5 32. Bxf4 Qxf4 33. Qg3+ Qg5 34. Qxg5+ hxg5 35. Ng3) 31... Rg7 (31... Bg5 $142 {And now ...Qh5 would win.} 32. Bg3 f4) 32. Ne3 (32. Bg3 {was forced.} Bxg3 33. Nxg3) 32... Bxe3 33. Rxe3 {White is weak on the light squares} Qh5 34. Ree1 Rg4 (34... Rf8 $19 {is more deadly. White must now prevent ...Nd3.} 35. Rd2 Nd3) 35. g3 $2 {[%mdl 8192]} (35. Bf6 $17 Qg6 36. Bxe5 Rxe5 37. Rd8+ Kf7 38. Rh8) 35... Nf3 {[%csl LRe1,LRh4]} 36. Rg1 Kf7 37. Rd7+ Ke6 38. Rxc7 Nxh4 (38... Rxh4 $142 39. gxh4 Nxg1) 39. gxh4 Rxh4 40. Rg6+ Ke5 $4 {[%mdl 8192]} (40... Kd5 $19 41. Qxh4 Qxh4+ 42. Kg1 f4 43. Rd7+ Ke5) 41. Rc5+ $18 Kf4 {[#]} 42. Rxf5+ $3 {[%mdl 512]} Qxf5 43. Qxh4+ {[%mdl 4096] Endgame. KQR-KQR} Ke5 44. Qg3+ $2 ({Don't take} 44. Rxh6 $6 Qf3+ 45. Kh2 Qf4+ 46. Qxf4+ Kxf4) ({White should try} 44. Qxh6 $18 {Intending Qh2+ and mate.} Re6 45. Rxe6+ Qxe6 46. Qxe6+ Kxe6 47. Kg1) 44... Qf4 $11 45. Qxf4+ ({But not} 45. Rxh6 Qxg3 46. fxg3 e3 $15) 45... Kxf4 46. Rxh6 {KR-KR} Kf3 47. Kg1 Rd8 {Hoping for ...Rd1+.} 48. Rf6+ Ke2 49. Re6 $2 {[%mdl 8192]} (49. Rf4 $11 Rg8+ 50. Kh2) 49... Rg8+ $19 50. Kh2 Kxf2 {( -> ...Rh8+)} 51. Rf6+ Ke2 52. Rf7 b5 53. Rf6 a5 54. Rf5 b4 {aiming for ...bxc3.} 55. Rxa5 bxc3 {Black mates.} 56. bxc3 Kd3 57. Re5 e3 (57... Kxc3 58. Rxe4 Kb2 59. Ra4 $11) 58. c4 e2 (58... Kxc4 59. Rxe3 Kb5 60. Re4 $11) 59. c5 Rg4 60. c6 Rc4 61. Kg2 Rxc6 62. Re8 Rg6+ 63. Kf2 Rf6+ 64. Kg2 Rf1 65. Rd8+ Kc4 {What a fight!   Weighted Error Value: White=0.94/Black=0.37.  Loses game:     	White=3     	---        Missed win:     	---       	Black=1      Mistake:       	White=5     	Black=2      Inaccurate:     	White=1     	Black=1      OK:         	White=10    	Black=14     Best:        	White=3     	Black=4      Strong:       	White=1     	Black=1} 0-1

[Event "Memorial Ukrainian Chess Warriors 2024"]
[Site "Lviv"]
[Date "2024.03.15"]
[Round "6.3"]
[White "Mikhaletz, Lubomir"]
[Black "Pavlov, Sergey"]
[Result "0-1"]
[ECO "D02"]
[WhiteElo "2278"]
[BlackElo "2451"]
[Annotator "ChessBase"]
[PlyCount "124"]
[EventDate "2024.03.06"]
[EventType "swiss"]
[EventCountry "UKR"]
[SourceTitle "playchess.com"]
[Source "ChessBase"]
[SourceQuality "1"]
[TimeControl "600+5"]

1. d4 {[%emt 0:00:00]} d5 {[%emt 0:00:18]} 2. Nf3 {[%emt 0:00:03]} Nf6 {[%emt 0:00:48]} 3. g3 {[%emt 0:00:21]} Bf5 {[%emt 0:01:04]} 4. Bg2 {[%emt 0:00:13]} e6 {[%emt 0:00:05]} 5. c4 {[%emt 0:00:18]} c6 {[%emt 0:00:09]} 6. Qb3 {[%emt 0:00:05]} Qb6 {[%emt 0:00:07]} 7. c5 {[%emt 0:00:21]} Qa6 {[%emt 0:00:39]} 8. Nc3 {[%emt 0:00:25]} Nbd7 {[%emt 0:00:15]} 9. Nh4 {[%emt 0:00:57]} Bg4 {[%emt 0:01:08]} 10. h3 {[%emt 0:00:35]} Bh5 {[%emt 0:00:01]} 11. g4 {[%emt 0:00:02]} Bg6 {[%emt 0:00:02]} 12. Nxg6 {[%emt 0:01:00]} hxg6 13. g5 {[%emt 0:00:25]} Ng8 {[%emt 0:00:33]} 14. e4 {[%emt 0:00:22]} O-O-O {[%emt 0:02:23]} 15. exd5 {[%emt 0:01:04]} exd5 {[%emt 0:00:07]} 16. Nxd5 {[%emt 0:01:03]} cxd5 {[%emt 0:00:27]} 17. Bxd5 {[%emt 0:00:32]} Ne7 {[%emt 0:00:16]} 18. Bxf7 {[%emt 0:00:30]} Nf5 {[%emt 0:01:10]} 19. Be3 {[%emt 0:00:21]} Qa5+ {[%emt 0:01:16]} 20. Qc3 {[%emt 0:02:17]} Qxc3+ {[%emt 0:00:28]} 21. bxc3 {[%emt 0:00:01]} Nxe3 {[%emt 0:00:17]} 22. fxe3 {[%emt 0:00:01]} Be7 {[%emt 0:00:01]} 23. Bxg6 {[%emt 0:00:06]} Bxg5 {[%emt 0:00:01]} 24. Ke2 {[%emt 0:00:03]} Nf6 {[%emt 0:00:23]} 25. Rhg1 {[%emt 0:00:15]} Bh6 {[%emt 0:00:02]} 26. e4 {[%emt 0:00:08]} Kc7 {[%emt 0:00:00]} 27. Kd3 {[%emt 0:00:03]} Rhf8 {[%emt 0:00:04]} 28. Raf1 {[%emt 0:00:05]} Nd7 {[%emt 0:00:06]} 29. Kc4 {[%emt 0:00:07]} b6 {[%emt 0:00:05]} 30. cxb6+ {[%emt 0:00:05]} axb6 {[%emt 0:00:06]} 31. Rf5 {[%emt 0:00:14]} Rxf5 {[%emt 0:00:06]} 32. Bxf5 {[%emt 0:00:01]} Ra8 {[%emt 0:00:02]} 33. Kb3 {[%emt 0:00:00]} b5 {[%emt 0:00:08]} 34. Rg6 {[%emt 0:00:07]} Nb6 {[%emt 0:00:07]} 35. Be6 {[%emt 0:00:20]} Rf8 {[%emt 0:00:08]} 36. Bf5 {[%emt 0:00:04]} Ra8 {[%emt 0:00:04]} 37. e5 {[%emt 0:00:08]} Nc4 {[%emt 0:00:05]} 38. Kb4 {[%emt 0:00:08]} Rxa2 {[%emt 0:00:05]} 39. Kxb5 {[%emt 0:00:02]} Ne3 {[%emt 0:00:06]} 40. Rc6+ {[%emt 0:00:05]} Kb8 {[%emt 0:00:07]} 41. Be6 {[%emt 0:00:04]} Rb2+ {[%emt 0:00:03]} 42. Kc5 {[%emt 0:00:03]} g5 {[%emt 0:00:04]} 43. Rb6+ {[%emt 0:00:02]} Rxb6 {[%emt 0:00:03]} 44. Kxb6 {[%emt 0:00:01]} Bf8 {[%emt 0:00:08]} 45. c4 {[%emt 0:00:03]} Bb4 {[%emt 0:00:03]} 46. c5 {[%emt 0:00:03]} Bc3 {[%emt 0:00:02]} 47. c6 {[%emt 0:00:09]} Bxd4+ {[%emt 0:00:01]} 48. Kb5 {[%emt 0:00:03]} Bxe5 {[%emt 0:00:05]} 49. Kb6 {[%emt 0:00:00]} Bd4+ {[%emt 0:00:01]} 50. Kb5 {[%emt 0:00:05]} Kc7 {[%emt 0:00:01]} 51. Bd7 {[%emt 0:00:04]} Kd6 {[%emt 0:00:04]} 52. Bc8 {[%emt 0:00:03]} Nd5 {[%emt 0:00:05]} 53. Kc4 {[%emt 0:00:07]} Bf2 {[%emt 0:00:06]} 54. Kd3 {[%emt 0:00:09]} Kxc6 {[%emt 0:00:08]} 55. Ke4 {[%emt 0:00:01]} Kd6 {[%emt 0:00:06]} 56. Bb7 {[%emt 0:00:08]} Nf4 {[%emt 0:00:12]} 57. Kf5 {[%emt 0:00:05]} Bh4 {[%emt 0:00:06]} 58. Kg4 {[%emt 0:00:04]} Ke5 {[%emt 0:00:00]} 59. Ba8 {[%emt 0:00:02]} Kd4 {[%emt 0:00:02]} 60. Bb7 {[%emt 0:00:03]} Ke3 {[%emt 0:00:00]} 61. Ba6 {[%emt 0:00:02]} Kf2 {[%emt 0:00:01]} 62. Bc8 {[%emt 0:00:09]} Kg2 0-1

[Event "Memorial Ukrainian Chess Warriors 2024"]
[Site "Lviv"]
[Date "2024.03.15"]
[Round "6.4"]
[White "Petursson, Margeir"]
[Black "Sakun, Volodymyr"]
[Result "0-1"]
[ECO "D30"]
[WhiteElo "2344"]
[BlackElo "2301"]
[Annotator "TA"]
[PlyCount "66"]
[EventDate "2024.03.06"]
[EventType "swiss"]
[EventCountry "UKR"]
[SourceTitle "playchess.com"]
[Source "ChessBase"]
[SourceQuality "1"]
[TimeControl "600+5"]

{[%evp 15,66,-27,-13,-54,-21,-21,-16,-29,-16,-25,-18,-108,-102,-109,-83,-87,-82,-89,-41,-129,-82,-70,-68,-79,-75,-98,0,-58,-60,-51,-63,-92,-93,-238,-235,-338,-339,-604,-624,-788,-779,-1146,-1036,-883,-530,-622,-612,-661,-713,-722,-708,-858,-822]} 1. d4 {[%emt 0:00:01]} d5 {[%emt 0:00:01]} 2. c4 {[%emt 0:00:01]} e6 {[%emt 0:00:02]} 3. Nf3 {[%emt 0:00:04]} Nf6 {[%emt 0:00:01]} 4. g3 {[%emt 0:00:02]} Bb4+ {[%emt 0:01:16]} 5. Nc3 {[%emt 0:00:05]} dxc4 {[%emt 0:00:30]} 6. Bg2 {[%emt 0:00:07]} O-O {[%emt 0:00:02]} 7. O-O {[%emt 0:00:06]} Nc6 {[%emt 0:00:07]} 8. a3 {[%emt 0:00:04]} Be7 {[%emt 0:00:06]} 9. e4 {[%emt 0:00:14]} Rb8 {[%emt 0:00:08]} 10. Re1 {[%emt 0:00:11]} b5 11. Bf4 {[%emt 0:00:18] The position is equal.} a6 {[%emt 0:00:35]} 12. d5 {[%emt 0:00:25]} Na5 {[%emt 0:00:31]} 13. Nd4 {[%emt 0:00:18]} (13. Qc2 $11) 13... Bc5 $17 {[%emt 0:00:12][%cal Of6g4]} 14. Rb1 {[%emt 0:00:58]} exd5 {[%emt 0:00:32]} 15. exd5 {[%emt 0:00:39]} Bg4 16. Qd2 {[%emt 0:00:22]} Re8 {[%emt 0:01:55]} (16... Qd7 $17 {And now ...Bb6 would win.} 17. Be5 Bxd4 18. Qxd4 Nb3) 17. Bg5 {[%emt 0:00:09]} (17. Rxe8+ $15 Nxe8 18. Ne4) 17... Rxe1+ {[%emt 0:00:10]} (17... Qd6 $142 18. h3 Bd7) 18. Rxe1 {[%emt 0:00:05]} h6 {[%emt 0:00:10]} 19. Bf4 {[%emt 0:00:49]} Bb6 {[%emt 0:00:38]} 20. h3 {[%emt 0:01:15] [#]} Bd7 {[%emt 0:00:02]} (20... Bh5 $1 $17) 21. Be5 {[%emt 0:00:20]} (21. d6 $1 $11) 21... Rc8 $36 {[%emt 0:00:37][%mdl 2048] Black is more active.} 22. Qf4 {[%emt 0:00:30]} Nh5 {[%emt 0:00:46]} 23. Qf3 {[%emt 0:00:21]} Qg5 {[%emt 0:00:12] White must now prevent ...Re8.} 24. h4 {[%emt 0:01:13] This move loses the game for White.} (24. d6 $17 Re8 (24... cxd6 $2 25. Nd5 $19) 25. h4) 24... Qg6 $19 {[%emt 0:00:23]} 25. Nc6 {[%emt 0:00:15]} (25. Qe4 {keeps fighting.}) 25... Re8 {[%emt 0:00:33]} 26. Re4 {[%emt 0:00:29] Wards off Bg4} (26. Nxa5 Bxa5 27. Re4) 26... Nxc6 {[%emt 0:00:22] Black is clearly winning.} 27. dxc6 {[%emt 0:00:17]} Bxc6 {[%emt 0:00:02] [#] ...Rxe5 is the strong threat.} 28. Qd1 {[%emt 0:00:41]} Bxe4 {[%emt 0:00:14]} 29. Bxe4 {[%emt 0:00:05]} Qe6 {[%emt 0:00:06]} 30. Qxh5 {[%emt 0:00:55]} Qxe5 {[%emt 0:00:01]} 31. Qf3 {[%emt 0:00:01]} Bd4 {[%emt 0:00:19] Strongly threatening ...Bxc3.} 32. Bd5 {[%emt 0:00:12]} Qf6 {[%emt 0:00:05]} 33. Qxf6 {[%emt 0:00:40]} Bxf6 {[%emt 0:00:02] Weighted Error Value: White=0.93/Black=0.36.  Mistake:       	White=6     	Black=3      Inaccurate:     	White=1     	Black=1      OK:         	White=6     	Black=7      Best:        	White=1     	Black=4} 0-1

[Event "Memorial Ukrainian Chess Warriors 2024"]
[Site "Lviv"]
[Date "2024.03.15"]
[Round "6.5"]
[White "Kravtsiv, Martyn"]
[Black "Sydoryka, Vladyslav"]
[Result "1-0"]
[ECO "B10"]
[WhiteElo "2598"]
[BlackElo "2310"]
[Annotator "TA"]
[PlyCount "49"]
[EventDate "2024.03.06"]
[EventType "swiss"]
[EventCountry "UKR"]
[SourceTitle "playchess.com"]
[Source "ChessBase"]
[SourceQuality "1"]
[TimeControl "600+5"]

{[%evp 9,49,-14,5,0,9,0,30,44,48,45,52,62,90,80,137,137,133,146,180,173,183,156,420,422,419,425,423,404,408,389,418,409,413,383,383,381,640,637,627,385,385,383]} 1. e4 {[%emt 0:00:01]} c6 {[%emt 0:00:00]} 2. Nf3 {[%emt 0:00:02]} d5 {[%emt 0:00:02]} 3. d3 {[%emt 0:00:01]} dxe4 {[%emt 0:00:01]} 4. dxe4 {[%emt 0:00:01]} Qxd1+ {[%emt 0:00:02]} 5. Kxd1 {[%emt 0:00:01]} g6 {[%emt 0:00:02]} 6. a4 {[%emt 0:00:51]} Nf6 {[%emt 0:01:22]} 7. Nfd2 {[%emt 0:00:45][%cal Bf3d2,Bd2c4,Bc4b6][%mdl 32]} Nbd7 {[%emt 0:03:18]} 8. f3 {[%emt 0:00:04] White has an edge.} Nc5 {[%emt 0:01:15]} 9. Nc4 {[%emt 0:00:11]} Bg7 {[%emt 0:01:41]} 10. Be3 {[%emt 0:00:18]} Nfd7 {[%emt 0:00:16]} 11. Nbd2 {[%emt 0:00:14]} b5 {[%emt 0:01:45]} (11... b6 $142) 12. axb5 $16 {[%emt 0:01:02]} cxb5 {[%emt 0:00:01] [#]} 13. Nb6 {[%emt 0:00:03][%mdl 512]} Bxb2 {[%emt 0:00:49]} (13... Nxb6 14. Bxc5) 14. Ra2 {[%emt 0:00:06][%cal Ba1a2,Ba2b2,Bb2b1,Bb1b5][%mdl 32]} (14. Nxa8 $6 Bxa1 15. Bxb5 (15. Nc7+ Kd8 $14) 15... O-O $14) 14... Nxb6 {[%emt 0:00:06]} 15. Bxc5 {[%emt 0:00:02]} (15. Rxb2 $6 Nba4 16. Bxb5+ (16. Rxb5 Nc3+ 17. Ke1 Nxb5 $17) 16... Bd7 17. Bxa4 Nxa4 $16) (15. Bxb5+ Bd7 16. Rxb2 Bxb5 17. Rxb5 (17. Bxc5 Na4 $11) 17... Ne6 $16) 15... Bd7 {[%emt 0:00:34] [#]} (15... Nd7 $16) 16. Bxb6 $1 $18 {[%emt 0:00:24]} ({Weaker is} 16. Rxb2 Na4 $18) 16... O-O {[%emt 0:00:05]} 17. Rxb2 {[%emt 0:00:15]} ({Not} 17. Bxa7 Be5 $18) ({Don't play} 17. Rxa7 Rxa7 18. Bxa7 Ra8 $18) 17... axb6 {[%emt 0:00:01]} 18. Bd3 {[%emt 0:00:11]} Ra1+ {[%emt 0:00:07]} 19. Rb1 {[%emt 0:00:01]} Rfa8 {[%emt 0:00:00]} 20. Ke2 {[%emt 0:00:02][%csl LRa1,LRb5]} R1a2 {[%emt 0:00:08]} 21. Rhc1 {[%emt 0:00:09]} Rc8 {[%emt 0:00:06]} 22. Bxb5 {[%emt 0:00:20]} Rcxc2 $2 {[%emt 0:00:07]} (22... Bxb5+ 23. Rxb5 Rcxc2) 23. Rxc2 {[%emt 0:00:03]} Bxb5+ {[%emt 0:00:01]} 24. Rxb5 {[%emt 0:00:02]} Rxc2 {[%emt 0:00:01]} 25. Rxb6 {[%emt 0:00:02] White took control after the opening.   Weighted Error Value: White=0.15 (very precise) /Black=0.53.  Loses game:     	---       	Black=1      Mistake:       	---       	Black=2      Inaccurate:     	---       	Black=2      OK:         	White=7     	Black=5      Best:        	White=3     	---        Strong:       	White=1     	---        Brilliant:      	White=1     	---} 1-0

[Event "Memorial Ukrainian Chess Warriors 2024"]
[Site "Lviv"]
[Date "2024.03.15"]
[Round "6.6"]
[White "Bagiryan, Vigen"]
[Black "Grinev, Valeriy"]
[Result "0-1"]
[ECO "B40"]
[WhiteElo "1969"]
[BlackElo "2422"]
[Annotator "TA"]
[PlyCount "54"]
[EventDate "2024.03.06"]
[EventType "swiss"]
[EventCountry "UKR"]
[SourceTitle "playchess.com"]
[Source "ChessBase"]
[SourceQuality "1"]
[TimeControl "600+5"]

{[%evp 9,54,0,0,0,-4,-9,-16,-9,-4,-37,-32,-33,-9,-51,-24,-110,-97,-105,-117,-112,-78,-89,-68,-74,-67,-66,-67,-84,-81,-96,-20,-66,-67,-69,-62,-157,-149,-308,-297,-437,-385,-516,-491,-1510,-1447,-29996,-29997]} 1. e4 {[%emt 0:00:06]} c5 {[%emt 0:00:02]} 2. Nf3 {[%emt 0:00:09]} e6 {[%emt 0:00:02]} 3. g3 {[%emt 0:00:16]} Nc6 {[%emt 0:00:03]} 4. Bg2 {[%emt 0:00:03]} Nf6 {[%emt 0:00:03]} 5. d3 {[%emt 0:00:04][%cal Bd2d3,Bd3d4][%mdl 32]} d5 {[%emt 0:00:02]} 6. exd5 {[%emt 0:00:09]} exd5 {[%emt 0:00:03]} 7. O-O {[%emt 0:00:05]} Be7 {[%emt 0:00:05] Aktives Gegenspiel!} 8. d4 {[%emt 0:00:03] Die Stellung ist ausgeglichen.} O-O {[%emt 0:00:08]} 9. h3 {[%emt 0:00:15]} Bf5 {[%emt 0:00:15]} 10. c3 {[%emt 0:00:03]} Qb6 {[%emt 0:00:17]} 11. Re1 {[%emt 0:00:26]} Rfe8 {[%emt 0:00:05]} 12. b3 {[%emt 0:00:46]} (12. Qb3 $11) 12... cxd4 $17 {[%emt 0:00:19]} 13. Nxd4 {[%emt 0:00:08]} Nxd4 {[%emt 0:00:03]} 14. cxd4 {[%emt 0:00:16]} Bb4 {[%emt 0:00:04]} 15. Rxe8+ {[%emt 0:00:18]} Rxe8 {[%emt 0:00:02]} 16. Be3 {[%emt 0:00:05]} Ne4 {[%emt 0:00:17][%cal Oe4g3]} 17. g4 {[%emt 0:00:41]} Bg6 {[%emt 0:00:10][%cal Bf5g6,Bg6e4,Be4f3][%mdl 32]} 18. a3 {[%emt 0:00:13]} Bd6 $36 {[%emt 0:00:31][%mdl 2048] Schwarz bestimmt, wo es lang geht.} 19. b4 {[%emt 0:00:12]} a5 {[%emt 0:01:42]} ({Günstiger ist} 19... Bb8 $17 {Weiss muss nun ...Qc7 beachten.} 20. Nd2 Nxd2 21. Qxd2 Qd6) 20. Qa4 {[%emt 0:00:26]} (20. Bxe4 $11 {verdient Beachtung.} Bxe4 (20... Rxe4 21. Nc3 $11) (20... dxe4 21. Nd2 $11) 21. Nc3) 20... Ra8 $15 {[%emt 0:00:18]} 21. Bxe4 $1 {[%emt 0:00:33]} Bxe4 22. Nc3 {[#]} (22. Nd2 $1 $15) 22... Bf3 $1 $17 {[%emt 0:00:32] Zielt auf ...Qd8 ab. Das Läuferpaar ist gut.} 23. bxa5 $2 {[%emt 0:00:50] Der Zug kostet die Partie für Weiß.} (23. Qd7 $17) 23... Qd8 $19 {[%emt 0:00:10][%cal Od8h4] Und ...Qh4! würde nun gewinnen.} (23... Rxa5 24. Qd7 (24. Qe8+ Bf8 $15) 24... Qc7 (24... Bxa3 $2 25. Rxa3 h5 26. Qc8+ Kh7 27. Qf5+ Kg8 28. Rxa5 $18) 25. Qxc7 Bxc7 26. Rb1 $11) (23... Qxa5 24. Qxa5 Rxa5 25. Rb1 $15) 24. Qb5 {[%emt 0:00:34]} (24. Nb1 $142 Qh4 (24... Rxa5 $2 25. Qc2 $19) (24... Qxa5 25. Qxa5 Rxa5 26. Nd2 $17) 25. Nd2) 24... Qh4 {[%emt 0:01:15]} (24... Rxa5 $2 25. Qxb7 h5 (25... Bxa3 $2 26. Bd2 $19) (25... Rxa3 26. Rxa3 Bxa3 27. Nb1 $15) 26. Nb1 $19) ({Lieber nicht} 24... Qxa5 25. Qd3 $11) 25. Qf1 {[%emt 0:00:00]} h5 {[%emt 0:00:23]} 26. g5 {[%emt 0:00:14]} (26. Nb5 $142 Be7 (26... Bb8 $2 27. Rc1 $19) 27. Bf4) 26... Re8 {[%emt 0:00:13][%cal Oe8e3] ( -> ...Rxe3!)} 27. Re1 {[%emt 0:00:11] [#]} Rxe3 $1 {[%emt 0:00:06][%mdl 512] Gewichteter Fehlerwert: Weiß=0.99/Schwarz=0.12 (sehr präzise) .  Fehler:       	Weiß=6     	Schwarz=1     Ungenau:       	Weiß=4     	Schwarz=2     OK:         	Weiß=3     	Schwarz=8     Bester:       	Weiß=1     	Schwarz=1     Stark:        	Weiß=1     	Schwarz=1} 0-1